bitfinex/quotes_BTCUSD_20241021
["timestamp","ask_amount","ask_price","bid_price","bid_amount"]
[1729524043589,0.47008611,67181.0,67180.0,0.00165]
[1729524044027,0.48008611,67181.0,67180.0,0.00165]
[1729524045444,0.48189588,67181.0,67180.0,0.00165]
[1729524045936,0.49189588,67181.0,67180.0,0.00165]
[1729524046179,0.49008611,67181.0,67180.0,0.00165]
[1729524046393,0.62301885,67181.0,67180.0,0.00165]
[1729524047107,0.49008611,67181.0,67180.0,0.00165]
[1729524048533,0.62304358,67181.0,67180.0,0.00165]
[1729524048760,0.61804358,67181.0,67180.0,0.00165]
[1729524048976,0.61304358,67181.0,67180.0,0.00165]
[1729524049434,0.48008611,67181.0,67180.0,0.00165]
[1729524049641,0.61810925,67181.0,67180.0,0.00165]
[1729524049900,0.61310925,67181.0,67180.0,0.00165]
[1729524050555,0.47508611,67181.0,67180.0,0.00165]
[1729524060997,0.48614056,67181.0,67180.0,0.00165]
[1729524061217,0.37508611,67181.0,67180.0,0.00165]
[1729524061862,0.36508611,67181.0,67180.0,0.00165]
[1729524062087,0.35708611,67181.0,67180.0,0.00065]
[1729524062322,0.37408611,67181.0,67180.0,0.00165]
[1729524063689,0.46908611,67181.0,67180.0,0.00165]
[1729524063929,0.48908611,67181.0,67180.0,0.00165]
[1729524064139,0.49089588,67181.0,67180.0,0.00165]
[1729524064920,0.14888,67168.0,67167.0,0.22378874]
[1729524065147,0.34410395,67168.0,67167.0,0.22378874]
[1729524065359,0.35689471,67168.0,67167.0,0.22378874]
[1729524065586,0.148889,67164.0,67163.0,0.0796]
[1729524065826,0.34411295,67164.0,67163.0,0.0796]
[1729524066049,0.44578703,67164.0,67163.0,0.0796]
[1729524066953,0.35690371,67164.0,67163.0,0.0796]
[1729524067190,0.297801,67159.0,67157.0,0.0782]
[1729524067403,0.29786115,67158.0,67157.0,0.0782]
[1729524067841,0.31065191,67158.0,67157.0,0.0782]
[1729524068477,0.35508668,67158.0,67157.0,0.0782]
[1729524068927,0.31865191,67158.0,67157.0,0.0782]
[1729524070310,0.3649792,67158.0,67157.0,0.0782]
[1729524070780,0.43167775,67158.0,67157.0,0.0782]
[1729524071009,0.148904,67157.0,67156.0,0.00165]
[1729524071232,0.43309042,67157.0,67156.0,0.00165]
[1729524071458,0.44588118,67157.0,67156.0,0.00165]
[1729524071651,0.3569812,67157.0,67156.0,0.00165]
[1729524071892,0.44584733,67157.0,67156.0,0.00165]
[1729524072357,0.3619812,67157.0,67156.0,0.00165]
[1729524072577,0.3629812,67157.0,67156.0,0.00165]
[1729524072784,0.45184733,67157.0,67156.0,0.00165]
[1729524073019,0.3629812,67157.0,67156.0,0.00165]
[1729524073247,0.43659783,67157.0,67156.0,0.00165]
[1729524073469,0.43359783,67157.0,67156.0,0.00165]
[1729524073684,0.3619812,67157.0,67156.0,0.00165]
[1729524074097,0.3699812,67157.0,67156.0,0.00165]
[1729524074317,0.45877148,67157.0,67156.0,0.00165]
[1729524074540,0.45077148,67157.0,67156.0,0.00165]
[1729524074777,0.3619812,67157.0,67156.0,0.00165]
[1729524074993,0.3789812,67157.0,67156.0,0.00165]
[1729524075198,0.46776171,67157.0,67156.0,0.00165]
[1729524075644,0.46276171,67157.0,67156.0,0.00165]
[1729524076293,0.44055704,67157.0,67156.0,0.00165]
[1729524076522,0.4405596,67157.0,67156.0,0.00165]
[1729524077058,0.44056289,67157.0,67156.0,0.00165]
[1729524077263,0.44055151,67157.0,67156.0,0.00165]
[1729524077472,0.3739812,67157.0,67156.0,0.00165]
[1729524077687,0.44055151,67157.0,67156.0,0.00165]
[1729524077918,0.3739812,67157.0,67156.0,0.00165]
[1729524079271,0.41834759,67157.0,67156.0,0.00165]
[1729524079705,0.3739812,67157.0,67156.0,0.00165]
[1729524081620,0.3739812,67157.0,67156.0,0.00184023]
[1729524082242,0.3739812,67157.0,67156.0,0.00165]
[1729524082469,0.3720203,67157.0,67156.0,0.00165]
[1729524082676,0.32765391,67157.0,67156.0,0.00165]
[1729524082879,0.41825828,67157.0,67156.0,0.00165]
[1729524083318,0.37204247,67157.0,67156.0,0.00165]
[1729524083778,0.32563391,67157.0,67156.0,0.00165]
[1729524085325,0.37003208,67157.0,67156.0,0.00165]
[1729524085794,0.32563391,67157.0,67156.0,0.08175]
[1729524086194,0.32563391,67157.0,67156.0,0.08194023]
[1729524086406,0.02979076,67157.0,67156.0,0.08194023]
[1729524086614,0.17869476,67157.0,67156.0,0.08175]
[1729524086851,0.31765391,67157.0,67156.0,0.08175]
[1729524087285,0.32365391,67157.0,67156.0,0.08175]
[1729524087492,0.31665391,67157.0,67156.0,0.08175]
[1729524087697,0.31065391,67157.0,67156.0,0.08475]
[1729524087905,0.31065391,67157.0,67156.0,0.08175]
[1729524088716,0.31765391,67157.0,67156.0,0.08175]
[1729524089176,0.37204995,67157.0,67156.0,0.00165]
[1729524089377,0.32765391,67157.0,67156.0,0.00165]
[1729524089617,0.37204995,67157.0,67156.0,0.00165]
[1729524089784,0.41830823,67157.0,67156.0,0.00165]
[1729524090963,0.32765391,67157.0,67156.0,0.00165]
[1729524091173,0.41831443,67157.0,67156.0,0.00165]
[1729524093929,0.37391839,67157.0,67156.0,0.00165]
[1729524094581,0.32765391,67157.0,67156.0,0.00165]
[1729524095434,0.32765391,67157.0,67156.0,0.00184023]
[1729524095908,0.37392269,67157.0,67156.0,0.00184023]
[1729524096133,0.32765391,67157.0,67156.0,0.00184023]
[1729524096337,0.37394308,67157.0,67156.0,0.00184023]
[1729524096973,0.37394308,67157.0,67156.0,0.00165]
[1729524101190,0.37476908,67157.0,67156.0,0.00165]
[1729524104887,0.41916512,67157.0,67156.0,0.00165]
[1729524105358,0.44136315,67157.0,67156.0,0.00165]
[1729524105579,0.37476908,67157.0,67156.0,0.00165]
[1729524106238,0.46356117,67157.0,67156.0,0.00165]
[1729524107309,0.48575919,67157.0,67156.0,0.00165]
[1729524107585,0.37476908,67157.0,67156.0,0.00165]
[1729524108285,0.48575919,67157.0,67156.0,0.00165]
[1729524108499,0.48557997,67157.0,67156.0,0.00165]
[1729524108708,0.37458986,67157.0,67156.0,0.00165]
[1729524108948,0.48569794,67157.0,67156.0,0.00165]
[1729524109182,0.37458986,67157.0,67156.0,0.00165]
[1729524110581,0.612778,67157.0,67156.0,0.00165]
[1729524110808,0.61473985,67157.0,67156.0,0.00165]
[1729524111037,0.47958986,67157.0,67156.0,0.00165]
[1729524111246,0.48139963,67157.0,67156.0,0.00165]
[1729524112744,0.47958986,67157.0,67156.0,0.00165]
[1729524112950,0.48850398,67157.0,67156.0,0.00165]
[1729524113909,0.47958986,67157.0,67156.0,0.00165]
[1729524114131,0.48139963,67157.0,67156.0,0.00165]
[1729524115711,0.47958986,67157.0,67156.0,0.00165]
[1729524116144,0.49072604,67157.0,67156.0,0.00165]
[1729524116342,0.51392604,67157.0,67156.0,0.00165]
[1729524116556,0.66376269,67157.0,67156.0,0.00165]
[1729524117216,0.49692604,67157.0,67156.0,0.00165]
[1729524117432,0.50392604,67157.0,67156.0,0.00165]
[1729524118349,0.49692604,67157.0,67156.0,0.00165]
[1729524118569,0.51392604,67157.0,67156.0,0.00165]
[1729524119032,0.50392604,67157.0,67156.0,0.00165]
[1729524119244,0.48072604,67157.0,67156.0,0.00165]
[1729524119460,0.49072604,67157.0,67156.0,0.00165]
[1729524119894,0.26572477,67152.0,67151.0,0.00165]
[1729524120158,0.26572477,67152.0,67144.0,0.22378874]
[1729524120159,0.16074077,67145.0,67144.0,0.22378874]
[1729524120371,0.16074077,67145.0,67122.0,0.00019023]
[1729524120372,0.26575877,67137.0,67136.0,0.22378874]
[1729524120587,0.74556291,67137.0,67136.0,0.22378874]
[1729524120814,0.253964,67130.0,67118.0,0.22378874]
[1729524121064,0.58239835,67130.0,67118.0,0.22378874]
[1729524121270,0.46100573,67130.0,67118.0,0.22378874]
[1729524121490,0.4728155,67130.0,67118.0,0.22378874]
[1729524121709,0.60587101,67130.0,67118.0,0.22378874]
[1729524121944,0.4728155,67130.0,67118.0,0.22378874]
[1729524122451,0.4728155,67130.0,67129.0,1e-06]
[1729524122452,1.00470503,67130.0,67129.0,1e-06]
[1729524122674,0.63310503,67130.0,67129.0,1e-06]
[1729524122899,0.63910503,67130.0,67129.0,1e-06]
[1729524123111,0.64910503,67130.0,67129.0,1e-06]
[1729524123794,0.63910503,67130.0,67129.0,1e-06]
[1729524124003,0.63310503,67130.0,67129.0,1e-06]
[1729524124212,0.63910503,67130.0,67129.0,1e-06]
[1729524124696,0.63310503,67130.0,67129.0,1e-06]
[1729524124905,0.63910503,67130.0,67129.0,1e-06]
[1729524125133,0.62590503,67130.0,67129.0,1e-06]
[1729524125594,0.48589526,67130.0,67129.0,1e-06]
[1729524125827,0.5004896,67130.0,67129.0,1e-06]
[1729524126038,0.36600573,67130.0,67129.0,1e-06]
[1729524126269,0.36600573,67130.0,67129.0,0.224001]
[1729524126270,0.31971656,67130.0,67129.0,0.224001]
[1729524126744,0.01179341,67130.0,67129.0,0.22419123]
[1729524126960,0.016,67130.0,67129.0,0.22419123]
[1729524127170,0.17640409,67130.0,67129.0,0.22419123]
[1729524127381,0.17040409,67130.0,67129.0,0.22419123]
[1729524127616,0.17440409,67130.0,67129.0,0.22419123]
[1729524128037,0.17040409,67130.0,67129.0,0.22419123]
[1729524128245,0.30936324,67130.0,67129.0,0.224001]
[1729524128478,0.31936324,67130.0,67129.0,0.224001]
[1729524128699,0.42436324,67130.0,67129.0,1e-06]
[1729524129151,0.41436324,67130.0,67129.0,1e-06]
[1729524129365,0.42036324,67130.0,67129.0,1e-06]
[1729524129827,0.41436324,67130.0,67129.0,1e-06]
[1729524130249,0.42436324,67130.0,67129.0,1e-06]
[1729524130497,0.42636324,67130.0,67129.0,1e-06]
[1729524130726,0.41936324,67130.0,67129.0,1e-06]
[1729524131170,0.42536324,67130.0,67129.0,1e-06]
[1729524131598,0.32536324,67130.0,67129.0,1e-06]
[1729524131843,0.02744009,67130.0,67129.0,0.07929123]
[1729524132069,0.02744009,67130.0,67129.0,0.21649123]
[1729524132293,0.016,67130.0,67129.0,0.21649123]
[1729524132736,0.006,67130.0,67129.0,0.36545723]
[1729524133198,0.297902,67137.0,67136.0,0.00019023]
[1729524133463,0.148949,67137.0,67136.0,0.00019023]
[1729524133701,0.1606442,67137.0,67136.0,0.00019023]
[1729524133953,0.148964,67130.0,67129.0,0.21649123]
[1729524134187,0.29792315,67130.0,67129.0,0.216301]
[1729524134438,0.41061966,67130.0,67129.0,0.079101]
[1729524134674,0.41461966,67130.0,67129.0,1e-06]
[1729524135804,0.46062446,67130.0,67129.0,1e-06]
[1729524136289,0.6944132,67130.0,67129.0,1e-06]
[1729524136538,0.47926023,67130.0,67129.0,1e-06]
[1729524136784,0.48233851,67130.0,67129.0,1e-06]
[1729524137034,0.59274933,67130.0,67129.0,1e-06]
[1729524137265,0.48833851,67130.0,67129.0,1e-06]
[1729524137503,0.16579377,67121.0,67120.0,0.001652]
[1729524137738,0.46075772,67121.0,67120.0,0.001652]
[1729524137972,0.47047017,67121.0,67120.0,0.001652]
[1729524139124,0.48047017,67121.0,67120.0,0.001652]
[1729524139579,0.47047017,67121.0,67120.0,0.001652]
[1729524140065,0.48647017,67121.0,67120.0,0.001652]
[1729524140714,0.49558213,67121.0,67120.0,0.001652]
[1729524141913,0.47147017,67121.0,67120.0,0.001652]
[1729524142131,0.32546537,67121.0,67120.0,0.080852]
[1729524142821,0.31946537,67121.0,67120.0,0.080852]
[1729524143049,0.30946537,67121.0,67120.0,0.080852]
[1729524143273,0.31146537,67121.0,67120.0,0.08104223]
[1729524143728,0.31146537,67121.0,67120.0,0.080852]
[1729524144652,0.31746537,67121.0,67120.0,0.08104223]
[1729524145112,0.31746537,67121.0,67120.0,0.080852]
[1729524147256,0.31746537,67121.0,67120.0,0.08104223]
[1729524148883,0.31746537,67121.0,67120.0,0.080852]
[1729524150711,0.31746537,67121.0,67120.0,0.08104223]
[1729524150712,0.01952222,67121.0,67120.0,0.08104223]
[1729524150947,0.000826,67130.0,67129.0,0.07569023]
[1729524151836,0.000826,67130.0,67129.0,0.36715623]
[1729524152518,0.001826,67130.0,67129.0,0.36815623]
[1729524152772,0.001826,67130.0,67129.0,0.51711538]
[1729524153225,0.000826,67130.0,67129.0,0.51611538]
[1729524153541,0.001826,67130.0,67129.0,0.51711538]
[1729524153969,0.001826,67130.0,67129.0,0.52011538]
[1729524154423,0.001826,67130.0,67129.0,0.51711538]
[1729524154880,0.001826,67130.0,67129.0,0.52211538]
[1729524155124,0.001826,67130.0,67129.0,0.37315623]
[1729524155567,0.001826,67130.0,67129.0,0.22419023]
[1729524156927,0.001826,67130.0,67129.0,0.37315623]
[1729524157208,0.001826,67130.0,67129.0,0.22419023]
[1729524157445,0.001826,67130.0,67129.0,0.37315623]
[1729524157661,0.001826,67130.0,67129.0,0.22419023]
[1729524157887,0.001826,67130.0,67129.0,0.37315623]
[1729524158323,0.001826,67130.0,67129.0,0.22419023]
[1729524158542,0.01140804,67130.0,67129.0,0.22419023]
[1729524160032,0.01140804,67130.0,67129.0,0.37315623]
[1729524160290,0.01140804,67130.0,67129.0,0.22419023]
[1729524161363,0.01140804,67130.0,67129.0,0.37315623]
[1729524161582,0.01140804,67130.0,67129.0,0.22419023]
[1729524162674,0.01140804,67130.0,67129.0,0.37315623]
[1729524162896,0.01140804,67130.0,67129.0,0.22419023]
[1729524163855,0.16037204,67130.0,67129.0,0.22419023]
[1729524164051,0.01140804,67130.0,67129.0,0.37315623]
[1729524164671,0.01140804,67130.0,67129.0,0.39615623]
[1729524164899,0.001826,67130.0,67129.0,0.39615623]
[1729524165344,0.01140804,67130.0,67129.0,0.24719023]
[1729524165568,0.01140804,67130.0,67129.0,0.39615623]
[1729524166265,0.01140804,67130.0,67129.0,0.24719023]
[1729524166499,0.16037204,67130.0,67129.0,0.24719023]
[1729524166943,0.01140804,67130.0,67129.0,0.24719023]
[1729524167153,0.16037204,67130.0,67129.0,0.22419023]
[1729524167809,0.15937204,67130.0,67129.0,0.22319023]
[1729524168049,0.15937204,67130.0,67129.0,0.21819023]
[1729524168272,0.16037204,67130.0,67129.0,0.22419023]
[1729524168933,0.16037204,67130.0,67129.0,0.224]
[1729524169158,0.30933119,67130.0,67129.0,0.006]
[1729524169375,0.16037204,67130.0,67129.0,0.006]
[1729524169816,0.01140804,67130.0,67129.0,0.08739023]
[1729524170029,0.16037204,67130.0,67129.0,0.08739023]
[1729524170256,0.01140804,67130.0,67129.0,0.08739023]
[1729524170475,0.16037204,67130.0,67129.0,0.08739023]
[1729524170938,0.01140804,67130.0,67129.0,0.08739023]
[1729524171154,0.16037204,67130.0,67129.0,0.08739023]
[1729524171366,0.15937204,67130.0,67129.0,0.08139023]
[1729524171811,0.16137204,67130.0,67129.0,0.08139023]
[1729524172069,0.16237204,67130.0,67129.0,0.08139023]
[1729524172272,0.16337204,67130.0,67129.0,0.08339023]
[1729524173158,0.16037204,67130.0,67129.0,0.08139023]
[1729524173370,0.16037204,67130.0,67129.0,0.08339023]
[1729524173774,0.16037204,67130.0,67129.0,0.08639023]
[1729524174203,0.16037204,67130.0,67129.0,0.08339023]
[1729524174631,0.15937204,67130.0,67129.0,0.08439023]
[1729524174828,0.16037204,67130.0,67129.0,0.08639023]
[1729524175478,0.16037204,67130.0,67129.0,0.005]
[1729524175688,0.15937204,67130.0,67129.0,0.003]
[1729524176134,0.16037204,67130.0,67129.0,0.005]
[1729524176335,0.16037204,67130.0,67129.0,0.003]
[1729524176555,0.16037204,67130.0,67127.0,0.00019023]
[1729524176556,0.148969,67128.0,67127.0,0.00019023]
[1729524176767,0.148969,67128.0,67123.0,0.45446774]
[1729524176768,0.01240804,67130.0,67129.0,0.00019023]
[1729524176973,0.002826,67130.0,67129.0,0.00019023]
[1729524177188,0.15079,67130.0,67129.0,0.00019023]
[1729524177818,0.14979,67130.0,67129.0,0.00019023]
[1729524178702,0.15079,67130.0,67129.0,0.00219023]
[1729524180036,0.15079,67130.0,67129.0,0.002]
[1729524180260,0.30274915,67130.0,67129.0,0.002]
[1729524180494,0.34898263,67130.0,67129.0,0.002]
[1729524180741,0.34598263,67130.0,67129.0,0.002]
[1729524180960,0.148975,67125.0,67124.0,0.22378874]
[1729524181171,0.148975,67125.0,67124.0,0.22397897]
[1729524181383,0.148975,67125.0,67124.0,0.00019023]
[1729524181795,0.148978,67124.0,67123.0,0.08189023]
[1729524182048,0.148982,67122.0,67121.0,0.001652]
[1729524182273,0.29794115,67122.0,67121.0,0.001652]
[1729524182496,0.34420149,67122.0,67121.0,0.001652]
[1729524183188,0.44920149,67122.0,67121.0,0.001652]
[1729524183445,0.5156603,67122.0,67121.0,0.001652]
[1729524183680,0.44920149,67122.0,67121.0,0.001652]
[1729524183935,0.45920149,67122.0,67121.0,0.001652]
[1729524184140,0.45920149,67122.0,67112.0,0.001686]
[1729524184141,0.16579377,67121.0,67120.0,1e-06]
[1729524184358,1.0165392,67121.0,67120.0,1e-06]
[1729524184816,1.02621878,67121.0,67120.0,1e-06]
[1729524185029,1.44321878,67121.0,67120.0,1e-06]
[1729524185269,2.31671878,67121.0,67120.0,1e-06]
[1729524185925,2.32271878,67121.0,67120.0,1e-06]
[1729524186153,2.31671878,67121.0,67120.0,1e-06]
[1729524186576,2.31671878,67121.0,67120.0,0.001001]
[1729524186577,2.32671878,67121.0,67120.0,0.001001]
[1729524187247,2.31671878,67121.0,67120.0,1e-06]
[1729524187483,2.48787415,67121.0,67120.0,0.001001]
[1729524187717,2.62670121,67121.0,67120.0,0.000961]
[1729524187919,2.62670121,67121.0,67112.0,0.001686]
[1729524187920,0.01680977,67113.0,67112.0,0.001686]
[1729524188139,0.01680977,67113.0,67112.0,1e-06]
[1729524188140,0.74441764,67113.0,67112.0,1e-06]
[1729524188361,0.58507092,67113.0,67112.0,1e-06]
[1729524188575,0.64101051,67113.0,67112.0,1e-06]
[1729524188795,0.93765464,67113.0,67112.0,1e-06]
[1729524189016,0.80492356,67113.0,67112.0,1e-06]
[1729524189227,1.0347123,67113.0,67112.0,1e-06]
[1729524189430,0.81092356,67113.0,67112.0,1e-06]
[1729524189840,1.08392356,67113.0,67112.0,1e-06]
[1729524190267,1.2165463,67113.0,67112.0,1e-06]
[1729524190467,1.2165463,67113.0,67102.0,0.001652]
[1729524190468,0.16583377,67103.0,67102.0,0.001652]
[1729524190678,0.46105326,67103.0,67102.0,0.001652]
[1729524190880,0.49340906,67103.0,67102.0,0.001652]
[1729524191353,0.51275727,67103.0,67102.0,0.001652]
[1729524191619,0.46859929,67103.0,67102.0,0.001652]
[1729524191831,0.48640906,67103.0,67102.0,0.002652]
[1729524192044,0.48459929,67103.0,67102.0,0.002652]
[1729524192269,0.47459929,67103.0,67102.0,0.002652]
[1729524192472,0.42333895,67103.0,67102.0,0.002652]
[1729524195523,0.43014872,67103.0,67102.0,0.002652]
[1729524195927,0.44014872,67103.0,67102.0,0.002652]
[1729524197029,0.52875417,67103.0,67102.0,0.002652]
[1729524197238,0.5269444,67103.0,67102.0,0.002652]
[1729524197449,0.52875417,67103.0,67102.0,0.002652]
[1729524199050,0.16583577,67102.0,67101.0,1e-06]
[1729524199288,0.46070037,67102.0,67101.0,1e-06]
[1729524199490,0.47002274,67102.0,67101.0,1e-06]
[1729524200326,0.47902274,67102.0,67101.0,1e-06]
[1729524200775,0.26584677,67097.0,67096.0,0.001648]
[1729524200999,0.41480592,67097.0,67096.0,0.001648]
[1729524201223,0.42400036,67097.0,67096.0,0.001648]
[1729524202150,0.43000036,67097.0,67096.0,0.001648]
[1729524202380,0.28885577,67093.0,67085.0,0.22378874]
[1729524202603,0.01680977,67090.0,67085.0,0.22378874]
[1729524202842,0.94734786,67090.0,67085.0,0.22378874]
[1729524203063,0.94734786,67090.0,67077.0,0.22378874]
[1729524203322,1.08593451,67090.0,67077.0,0.22378874]
[1729524203976,1.09374428,67090.0,67077.0,0.22378874]
[1729524204194,1.09350595,67090.0,67077.0,0.22378874]
[1729524204410,1.10350595,67090.0,67077.0,0.22378874]
[1729524204668,1.09750595,67090.0,67077.0,0.22378874]
[1729524204883,1.08750595,67090.0,67077.0,0.22378874]
[1729524205090,1.10241207,67090.0,67077.0,0.22378874]
[1729524205303,1.1006023,67090.0,67077.0,0.22378874]
[1729524206280,1.1106023,67090.0,67077.0,0.22378874]
[1729524207763,1.1106023,67090.0,67078.0,0.00019023]
[1729524207975,1.1106023,67090.0,67077.0,0.22397897]
[1729524208194,1.15827488,67090.0,67077.0,0.22378874]
[1729524208418,1.15646511,67090.0,67077.0,0.22378874]
[1729524208645,1.15646511,67090.0,67080.0,0.00019023]
[1729524208857,1.15646511,67090.0,67078.0,0.00019023]
[1729524209327,1.15646511,67090.0,67078.0,0.22378874]
[1729524212892,1.15646511,67090.0,67079.0,0.00019023]
[1729524212893,1.02543371,67090.0,67079.0,0.00019023]
[1729524213109,1.02543371,67090.0,67078.0,0.22378874]
[1729524213110,1.02543371,67090.0,67086.0,0.0756]
[1729524214885,0.90152759,67090.0,67087.0,0.1367]
[1729524215331,0.66820165,67090.0,67087.0,0.1367]
[1729524215561,0.35900165,67090.0,67087.0,0.1367]
[1729524215786,0.149057,67088.0,67087.0,0.09582941]
[1729524216009,0.29801615,67088.0,67087.0,0.09582941]
[1729524216277,0.149057,67088.0,67087.0,0.09582941]
[1729524216489,0.15804772,67088.0,67087.0,0.09582941]
[1729524216738,0.15804772,67088.0,67087.0,0.09601964]
[1729524216957,0.01299072,67088.0,67087.0,0.17591964]
[1729524217439,0.00899072,67088.0,67087.0,0.17591964]
[1729524217660,0.149051,67091.0,67087.0,0.17591964]
[1729524217661,0.149051,67091.0,67090.0,0.08009023]
[1729524218320,0.447137,67094.0,67093.0,0.00019023]
[1729524218578,0.49328065,67094.0,67093.0,0.00019023]
[1729524219272,0.149046,67093.0,67092.0,0.00019023]
[1729524219520,0.152051,67091.0,67090.0,0.0799]
[1729524219990,0.149051,67091.0,67090.0,0.0799]
[1729524220447,0.149051,67091.0,67090.0,0.08009023]
[1729524222219,0.157051,67091.0,67090.0,0.08009023]
[1729524222671,0.20322279,67091.0,67090.0,0.08009023]
[1729524222892,0.20322137,67091.0,67090.0,0.08009023]
[1729524223124,0.157051,67091.0,67090.0,0.08009023]
[1729524223624,0.20322001,67091.0,67090.0,0.08009023]
[1729524224321,0.157051,67091.0,67090.0,0.08009023]
[1729524224969,0.20322078,67091.0,67090.0,0.08009023]
[1729524225163,0.157051,67091.0,67090.0,0.08009023]
[1729524225377,0.16468867,67091.0,67090.0,0.08009023]
[1729524225611,0.21085326,67091.0,67090.0,0.08009023]
[1729524227570,0.21085326,67091.0,67090.0,0.0799]
[1729524227787,0.21085326,67091.0,67090.0,0.08009023]
[1729524227990,0.21085326,67091.0,67090.0,0.04759023]
[1729524228452,0.21083213,67091.0,67090.0,0.04759023]
[1729524229298,0.16468867,67091.0,67090.0,0.04759023]
[1729524230448,0.16468867,67091.0,67090.0,0.0474]
[1729524230673,0.16468867,67091.0,67090.0,0.04759023]
[1729524230929,0.01563767,67091.0,67090.0,0.34074323]
[1729524231148,0.298017,67111.0,67104.0,0.00019023]
[1729524231359,0.02334669,67111.0,67104.0,0.21899023]
[1729524231598,0.298031,67108.0,67104.0,0.21899023]
[1729524231817,0.14902,67105.0,67104.0,0.21899023]
[1729524232063,0.149018,67106.0,67104.0,0.21899023]
[1729524232305,0.149018,67106.0,67105.0,0.00019023]
[1729524233185,0.02334669,67111.0,67108.0,0.00019023]
[1729524233447,0.17235269,67111.0,67110.0,0.14129023]
[1729524233667,0.02334669,67111.0,67110.0,0.14129023]
[1729524234145,0.17235269,67111.0,67110.0,0.14129023]
[1729524234973,0.17535269,67111.0,67110.0,0.14129023]
[1729524235391,0.17235269,67111.0,67110.0,0.14429023]
[1729524235596,0.17235269,67111.0,67110.0,0.14829023]
[1729524235597,0.150006,67111.0,67110.0,0.14829023]
[1729524235870,0.150006,67111.0,67110.0,0.14529023]
[1729524236292,0.152006,67111.0,67110.0,0.14729023]
[1729524239007,0.30096515,67111.0,67110.0,0.1471]
[1729524239419,0.30096515,67111.0,67110.0,0.006]
[1729524240511,0.52972114,67111.0,67110.0,0.006]
[1729524240745,0.90794708,67111.0,67110.0,0.006]
[1729524241443,0.90594708,67111.0,67110.0,0.006]
[1729524241624,0.149042,67095.0,67089.0,0.076425]
[1729524241836,0.29800115,67095.0,67090.0,0.001652]
[1729524242041,0.149051,67091.0,67090.0,0.001652]
[1729524242710,0.22378874,67102.0,67094.0,0.2281]
[1729524242918,0.22378874,67102.0,67101.0,0.00019023]
[1729524243147,0.298036,67106.0,67103.0,0.00019023]
[1729524243364,0.149022,67104.0,67103.0,0.00019023]
[1729524244738,0.447033,67109.0,67108.0,0.00019023]
[1729524244983,0.59599215,67109.0,67108.0,0.00019023]
[1729524245203,0.149013,67108.0,67107.0,0.00019023]
[1729524245474,0.149015,67107.0,67106.0,0.00019023]
[1729524246586,0.152011,67109.0,67108.0,0.00019023]
[1729524247266,0.149011,67109.0,67108.0,0.00019023]
[1729524248425,0.152011,67109.0,67108.0,0.00019023]
[1729524250448,0.149017,67106.0,67105.0,0.00019023]
[1729524251554,0.149017,67106.0,67105.0,0.00319023]
[1729524252434,0.29797615,67106.0,67105.0,0.003]
[1729524253350,0.29797615,67106.0,67105.0,0.00319023]
[1729524253567,0.29797615,67106.0,67105.0,0.00019023]
[1729524254016,0.29997615,67106.0,67105.0,0.00019023]
[1729524254238,0.30597615,67106.0,67105.0,0.00119023]
[1729524254688,0.29797615,67106.0,67105.0,0.00019023]
[1729524254890,0.29797615,67106.0,67105.0,0.00119023]
[1729524255108,0.29997615,67106.0,67105.0,0.00119023]
[1729524255559,0.1575502,67106.0,67105.0,0.00119023]
[1729524256007,0.30650935,67106.0,67105.0,0.001]
[1729524256665,0.67650167,67106.0,67105.0,0.001]
[1729524256877,0.49692668,67106.0,67105.0,0.001]
[1729524257113,0.54614044,67106.0,67105.0,0.001]
[1729524257550,0.56824732,67106.0,67105.0,0.001]
[1729524257808,0.149037,67097.0,67096.0,0.22378874]
[1729524258020,0.34419973,67097.0,67096.0,0.22378874]
[1729524258247,0.149049,67092.0,67091.0,0.001652]
[1729524258448,0.29800815,67092.0,67091.0,0.00184223]
[1729524258654,0.29800815,67092.0,67091.0,0.001652]
[1729524258869,0.30463998,67092.0,67091.0,0.00184223]
[1729524259771,0.40463998,67092.0,67091.0,0.001652]
[1729524260011,0.45083593,67092.0,67091.0,0.001652]
[1729524261154,0.45383593,67092.0,67091.0,0.001652]
[1729524262030,0.45083593,67092.0,67091.0,0.001652]
[1729524263785,0.45283593,67092.0,67091.0,0.001652]
[1729524264001,0.45083593,67092.0,67091.0,0.001652]
[1729524264242,0.45583593,67092.0,67091.0,0.002652]
[1729524264460,0.45883593,67092.0,67091.0,0.002652]
[1729524264721,0.45383593,67092.0,67091.0,0.001652]
[1729524264926,0.45983593,67092.0,67091.0,0.002652]
[1729524265791,0.45983593,67092.0,67091.0,0.00284223]
[1729524266445,0.68362467,67092.0,67091.0,0.002652]
[1729524266670,0.50419506,67092.0,67091.0,0.002652]
[1729524266894,0.49756323,67092.0,67091.0,0.002652]
[1729524267604,0.39756968,67092.0,67091.0,0.002652]
[1729524267818,0.3532041,67092.0,67091.0,0.002652]
[1729524272893,0.49756644,67092.0,67091.0,0.002652]
[1729524273111,0.67399284,67092.0,67091.0,0.002652]
[1729524273338,0.67399284,67092.0,67091.0,1e-06]
[1729524273339,0.56010996,67092.0,67091.0,1e-06]
[1729524273556,0.46601387,67092.0,67091.0,1e-06]
[1729524273773,0.26586077,67091.0,67090.0,1e-06]
[1729524274009,0.59399217,67091.0,67090.0,1e-06]
[1729524274643,0.46101587,67091.0,67090.0,1e-06]
[1729524275174,0.260049,67092.0,67091.0,3.53898413]
[1729524275500,0.30622184,67092.0,67091.0,3.53898413]
[1729524275743,0.255049,67092.0,67091.0,3.53898413]
[1729524276009,0.39800815,67092.0,67091.0,3.53898413]
[1729524276915,0.40300815,67092.0,67091.0,3.53898413]
[1729524277164,0.41200815,67092.0,67091.0,3.53898413]
[1729524277823,0.41200815,67092.0,67091.0,3.53981013]
[1729524281989,0.31200815,67092.0,67091.0,3.54181013]
[1729524282203,0.163049,67092.0,67091.0,3.76931013]
[1729524282418,0.163049,67092.0,67091.0,3.92836113]
[1729524282419,0.014,67092.0,67091.0,3.92836113]
[1729524283352,0.009,67092.0,67091.0,3.92836113]
[1729524283567,0.52183774,67103.0,67101.0,0.005]
[1729524283838,0.149026,67102.0,67101.0,0.005]
[1729524284053,0.000826,67106.0,67105.0,0.015]
[1729524284313,0.149843,67106.0,67105.0,0.0995]
[1729524284549,0.000826,67106.0,67105.0,0.0995]
[1729524284982,0.000826,67106.0,67105.0,0.3165375]
[1729524285238,0.000826,67106.0,67105.0,0.24852]
[1729524285456,0.000826,67106.0,67105.0,0.38825651]
[1729524285712,0.002826,67106.0,67105.0,0.2331]